Cogmind - Beta 13 @@@ ROGUE MODE // 2024.04.08 @ 01:06:56 Player: SnowyImp Result: Self-destructed Performance ------------- Evolutions (3) 1500 Regions Visited (7) 1400 Robots Destroyed (13) 65 Value Destroyed (247) 247 Prototype IDs (2) 40 Alien Tech Used (0) 0 Bonus (500) 500 TOTAL SCORE: 3752 Bonus ------- Entered Garrisons 200 Aligned with FarCom 300 Cogmind --------- Core Integrity 191/700 Matter 133/300 Energy 49/100 System Corruption 0% Temperature Cool (0) Movement Core (50) Location -7/Garrison Parts ------- > --- POWER (1) -------- (None) > --- PROPULSION (6) --- (None) > --- UTILITY (4) ------ Modified TNC Melee Analysis Suite Melee Analysis Suite > --- WEAPON (2) ------- (None) > --- INVENTORY (5) ---- Light Nuclear Core ECM Suite Improved Datajack Peak State ------------ > --- POWER ------------ Nuclear Core > --- PROPULSION ------- Flight Unit Flight Unit Flight Unit Flight Unit > --- UTILITY ---------- Modified TNC Melee Analysis Suite Reaction Control System Hacking Suite > --- WEAPON ----------- Light Assault Rifle Heavy Assault Rifle > --- INVENTORY -------- Light Deuterium Engine Terrain Scan Processor Melee Analysis Suite Reaction Control System Improved Datajack [Rating: 26] Favorites ----------- Power Light Ion Engine Engine Light Ion Engine Power Core Nuclear Core Propulsion Flight Unit Leg Aluminum Leg Flight Unit Flight Unit Utility Modified TNC Device Reaction Control System Processor Modified TNC Hackware Hacking Suite Weapon Light Assault Rifle Energy Gun Small Laser Ballistic Gun Light Assault Rifle Ballistic Cannon Improved Light Cannon Special Melee Weapon Improved Datajack Build | -11 -10 -10 -10 -9 -8 -7 -7 ------- Run | Yrd Mat Min Exi Min Mat Fac Gar Slots Evolved 6 | . . . . . 4 2 . Power . | . . . . . . . . Propulsion 4 | . . . . . 2 2 . Utility 2 | . . . . . 2 . . Weapon . | . . . . . . . . Parts Attached 39 | 4 4 7 1 . 10 10 3 Power 8 | 1 1 1 . . 2 2 1 Engine 5 | 1 1 1 . . 1 1 . Core 3 | . . . . . 1 1 1 Reactor . | . . . . . . . . Propulsion 10 | 2 . 3 . . 3 2 . Treads . | . . . . . . . . Leg 2 | 2 . . . . . . . Wheel . | . . . . . . . . Hover . | . . . . . . . . Flight 8 | . . 3 . . 3 2 . Utility 11 | . 2 . 1 . 4 4 . Device 7 | . 2 . . . 2 3 . Storage . | . . . . . . . . Processor 3 | . . . 1 . 1 1 . Hackware 1 | . . . . . 1 . . Protection . | . . . . . . . . Artifact . | . . . . . . . . Weapon 10 | 1 1 3 . . 1 2 2 Energy Gun 1 | . 1 . . . . . . Energy Cannon . | . . . . . . . . Ballistic Gun 6 | 1 . 3 . . 1 1 . Ballistic Cannon 1 | . . . . . . 1 . Launcher . | . . . . . . . . Special Weapon . | . . . . . . . . Impact Weapon . | . . . . . . . . Slashing Weapon . | . . . . . . . . Piercing Weapon . | . . . . . . . . Special Melee Weapon 2 | . . . . . . . 2 Unidentified Prototypes 2 | . . . 1 . 1 . . Parts Lost 20 | . . 6 . . 3 7 4 Power 1 | . . 1 . . . . . Propulsion 9 | . . 2 . . 3 2 2 Utility 6 | . . 2 . . . 3 1 Weapon 4 | . . 1 . . . 2 1 Highest Loss Streak 6 | . . 6 . . 2 4 4 To Critical Strikes 1 | . . 1 . . . . . Average Slot Usage (%) 66 | . 63 65 78 85 89 43 42 Engine 7 | . 14 13 14 14 3 1 . Core 1 | . . . . . 5 . . Leg 4 | . 28 3 . . . . . Flight 18 | . . 20 28 28 33 11 10 Device 4 | . 6 3 . . 6 3 7 Processor 8 | . . . 7 14 13 15 23 Hackware 2 | . . . . . 8 3 . Energy Gun 1 | . 5 3 . . . . . Ballistic Gun 13 | . 8 21 28 28 18 1 . Ballistic Cannon 1 | . . . . . . 4 . Naked Turns 1 | . . 1 . . . . . Heaviest Build 12 | 5 8 8 5 5 12 7 3 Greatest Support 20 | 20 20 20 8 8 16 8 8 Greatest Overweight (x) 1 | . . . . . . 1 . Average Overweight (x) . | . . . . . . . . Largest Inventory Capacity 5 | 5 5 5 5 5 5 5 5 Average Capacity 5 | 5 5 5 5 5 5 5 5 Most Carried 5 | 1 2 4 4 4 5 5 4 Average Carried 3 | . 1 2 4 4 4 4 3 Final Capacity 5 | 5 5 5 5 5 5 5 5 Final Carried 5 | 1 1 4 4 4 5 4 3 Class Distribution -------------------- 43% | Mutant 32% | Scavenger-Mutant 17% | Scavenger-Sprinter 6% | Sprinter Dominant Class ---------------- Mutant | -10/Materials Scavenger-Mutant | -10/Mines Scavenger-Mutant | -10/Exiles Scavenger-Mutant | -9/Mines Scavenger-Sprinter | -8/Materials Mutant | -7/Factory Sprinter | -7/Garrison Resources | -11 -10 -10 -10 -9 -8 -7 -7 ----------- Run | Yrd Mat Min Exi Min Mat Fac Gar Matter Collected 429 | 203 81 99 . . 20 26 . Remotely . | . . . . . . . . Salvage Created 295 | . 81 84 . . 88 42 . Parts 24 | . 5 9 . . 5 5 . Haulers Intercepted . | . . . . . . . . Recyclers Shooed . | . . . . . . . . Parts Field Recycled . | . . . . . . . . Retrieved Matter . | . . . . . . . . Parts Self-Destructed . | . . . . . . . . Prevented . | . . . . . . . . Kills | -11 -10 -10 -10 -9 -8 -7 -7 ------- Run | Yrd Mat Min Exi Min Mat Fac Gar Combat Hostiles Destroyed 13 | . 2 6 . . 3 2 . Guns 12 | . 2 6 . . 3 1 . Cannons 1 | . . . . . . 1 . Classes Destroyed 3 | . 1 1 . . 1 . . Swarmer 10 | . . 6 . . 2 2 . Grunt 2 | . 2 . . . . . . Sentry 1 | . . . . . 1 . . Best Kill Streak 6 | . 1 6 . . 2 1 . Combat Bots Only 6 | . 1 6 . . 2 1 . Max Kills in Single Turn 1 | . 1 1 . . 1 1 . Gunslinging . | . . . . . . . . Exploded . | . . . . . . . . Melee . | . . . . . . . . Uniques/NPCs Destroyed . | . . . . . . . . Combat | -11 -10 -10 -10 -9 -8 -7 -7 -------- Run | Yrd Mat Min Exi Min Mat Fac Gar Hostile Shots Fired 219 | . 30 46 . . 47 51 45 Missed 77 | . 8 13 . . 21 24 11 Damage Taken 1800 | . 261 267 . . 257 531 484 Core 690 | . 22 84 . . 75 201 308 Absorbed by Shields 37 | . . . . . . . 37 Core Remaining (%) 81 | 100 . . . 57 86 . . Volleys Fired 72 | . 23 26 . . 11 12 . Largest 2 | . 1 1 . . 2 1 . Hottest 43 | . 20 40 . . 43 39 . Shots Fired 83 | . 23 26 . . 22 12 . Gun 80 | . 23 26 . . 22 9 . Cannon 3 | . . . . . . 3 . Launcher . | . . . . . . . . Special . | . . . . . . . . Kinetic 63 | . 23 6 . . 22 12 . Thermal 20 | . . 20 . . . . . Explosive . | . . . . . . . . Electromagnetic . | . . . . . . . . Robot Hit Streak 7 | . 7 2 . . 7 7 . Robot Miss Streak 4 | . 2 2 . . 2 4 . Penetration Max . | . . . . . . . . Secondary Targets 1 | . . . . . 1 . . Max Gunslinging Chain 1 | . . . . . 1 . . Shots Hit Robots 56 | . 17 14 . . 16 7 2 Core Hits 21 | . 4 7 . . 7 3 . Critical Kills 1 | . . . . . . 1 . Critical Parts Destroyed . | . . . . . . . . Critical Strikes 1 | . . . . . . 1 . Destroy 1 | . . . . . . 1 . Melee Attacks 4 | . . . . . . . 4 Impact . | . . . . . . . . Slashing . | . . . . . . . . Piercing . | . . . . . . . . Sneak Attacks . | . . . . . . . . Combat Hostiles . | . . . . . . . . Follow-up Attacks . | . . . . . . . . Damage Inflicted 561 | . 203 147 . . 131 75 5 Guns 529 | . 203 147 . . 127 52 . Cannons 23 | . . . . . . 23 . Explosions . | . . . . . . . . Melee . | . . . . . . . . Ramming 9 | . . . . . 4 . 5 Kinetic 424 | . 203 19 . . 127 75 . Thermal 128 | . . 128 . . . . . Explosive . | . . . . . . . . Electromagnetic . | . . . . . . . . Impact . | . . . . . . . . Slashing . | . . . . . . . . Piercing . | . . . . . . . . Highest Corruption . | . . . . . . . . Average Corruption . | . . . . . . . . Corruption Purged . | . . . . . . . . Corruption Blocked . | . . . . . . . . Overload Shots . | . . . . . . . . Overflow Damage . | . . . . . . . . Projectiles . | . . . . . . . . Explosions . | . . . . . . . . Melee . | . . . . . . . . Knockbacks . | . . . . . . . . Impact . | . . . . . . . . Kinetic . | . . . . . . . . Secondary . | . . . . . . . . Self-Inflicted Damage 4 | . . . . . 2 . 2 Shots . | . . . . . . . . Rammed 3 | . . . . . 2 . 1 Targets Rammed 3 | . . . . . 2 . 1 Kicked . | . . . . . . . . Crushed . | . . . . . . . . Highest Temperature 36 | . . . . . 36 . . Average Temperature 18 | . . . . . 18 . . Received Heat Transfer 279 | . 144 . . . 90 45 . Siege Activations . | . . . . . . . . Robots Corrupted . | . . . . . . . . Combat Hostiles . | . . . . . . . . Parts Fried . | . . . . . . . . Impact Corruptions . | . . . . . . . . Robots Melted . | . . . . . . . . Combat Hostiles . | . . . . . . . . Parts Melted 1 | . . 1 . . . . . Heat Transferred 300 | . . 300 . . . . . Parts Sabotaged . | . . . . . . . . Parts Stolen . | . . . . . . . . Parts Stripped . | . . . . . . . . Power Chain Reactions . | . . . . . . . . Alert | -11 -10 -10 -10 -9 -8 -7 -7 ------- Run | Yrd Mat Min Exi Min Mat Fac Gar Peak Influence 267 | . 96 137 . . 267 267 229 Initial 179 | . . 37 . . . 112 179 Average 111 | . 45 115 . . 130 152 218 Maximum Alert Level 1 | . . . . . 1 1 1 Low Security (%) 88 | 100 100 100 . 100 88 82 17 Level 1 11 | . . . . . 11 17 82 Level 2 . | . . . . . . . . Level 3 . | . . . . . . . . Level 4 . | . . . . . . . . Level 5 . | . . . . . . . . High Security . | . . . . . . . . Max Security . | . . . . . . . . Squads Dispatched 3 | . 1 . . . 2 . . Investigation 1 | . 1 . . . . . . Extermination . | . . . . . . . . Reinforcement 2 | . . . . . 2 . . Assault . | . . . . . . . . Garrison . | . . . . . . . . Intercept . | . . . . . . . . Searches Triggered . | . . . . . . . . Construction Impeded . | . . . . . . . . Haulers Reinforced . | . . . . . . . . Active Scanning Responses . | . . . . . . . . Cargo Convoy Interrupts . | . . . . . . . . Stealth | -11 -10 -10 -10 -9 -8 -7 -7 --------- Run | Yrd Mat Min Exi Min Mat Fac Gar Distress Signals 3 | . 1 . . . 1 1 . Communications Jammed . | . . . . . . . . Distress Signals . | . . . . . . . . Times Spotted 59 | . 6 6 . . 22 20 5 Peak Tracking Total 9 | . 4 4 . . 8 9 5 Tactical Retreats 9 | . . . . . 3 6 . Traps | -11 -10 -10 -10 -9 -8 -7 -7 ------- Run | Yrd Mat Min Exi Min Mat Fac Gar Traps Triggered 4 | . 1 . . . . 1 2 Indirectly . | . . . . . . . . Trap Hack Attempts . | . . . . . . . . Triggered . | . . . . . . . . Disarmed . | . . . . . . . . Reprogrammed . | . . . . . . . . Reused . | . . . . . . . . Traps Extracted . | . . . . . . . . Installed . | . . . . . . . . Triggered . | . . . . . . . . Machines | -11 -10 -10 -10 -9 -8 -7 -7 ---------- Run | Yrd Mat Min Exi Min Mat Fac Gar Machines Disabled . | . . . . . . . . Max in Single Turn . | . . . . . . . . Machines Repaired . | . . . . . . . . Machines Dismantled . | . . . . . . . . Machines Sabotaged . | . . . . . . . . Overloaded Fab Kills . | . . . . . . . . Hacking | -11 -10 -10 -10 -9 -8 -7 -7 --------- Run | Yrd Mat Min Exi Min Mat Fac Gar Machines Accessed 11 | . 2 . . . 5 3 1 Terminals 10 | . 2 . . . 5 2 1 Fabricators . | . . . . . . . . Repair Stations . | . . . . . . . . Recycling Units . | . . . . . . . . Scanalyzers . | . . . . . . . . Garrison Access 1 | . . . . . . 1 . Total Hacks 34 | . 6 . . . 21 4 3 Successful 17 | . 3 . . . 13 1 . Failed 17 | . 3 . . . 8 3 3 Catastrophic 5 | . . . . . 3 1 1 Database Lockouts . | . . . . . . . . Manual 30 | . 6 . 1 . 20 3 . Terminals 33 | . 6 . . . 21 3 3 Fabricators . | . . . . . . . . Repair Stations . | . . . . . . . . Recycling Units . | . . . . . . . . Scanalyzers . | . . . . . . . . Garrison Access 1 | . . . . . . 1 . Terminal Hacks 5 | . 1 . . . 4 . . Part Schematic 4 | . 1 . . . 3 . . Robot Analysis 1 | . . . . . 1 . . Fabricator Hacks . | . . . . . . . . Repair Station Hacks . | . . . . . . . . Recycling Unit Hacks . | . . . . . . . . Scanalyzer . | . . . . . . . . Garrison Access Hacks 1 | . . . . . . 1 . Unlock Access 1 | . . . . . . 1 . Unauthorized Hacks 11 | . 2 . . . 9 . . Terminals 11 | . 2 . . . 9 . . Assimilate 4 | . . . . . 4 . . Botnet 7 | . 2 . . . 5 . . Fabricators . | . . . . . . . . Repair Stations . | . . . . . . . . Recycling Units . | . . . . . . . . Scanalyzers . | . . . . . . . . Garrison Access . | . . . . . . . . Data Cores Recovered . | . . . . . . . . Used . | . . . . . . . . Hacking Detections 11 | . 2 . . . 5 3 1 Full Trace Events 3 | . . . . . 2 . 1 Feedback Events . | . . . . . . . . Feedback Blocked . | . . . . . . . . Robot Schematics Acquired . | . . . . . . . . Robots Built . | . . . . . . . . Authchips . | . . . . . . . . Time . | . . . . . . . . Total Robot Build Rating . | . . . . . . . . Part Schematics Acquired 4 | . 1 . . . 3 . . Parts Built . | . . . . . . . . Authchips . | . . . . . . . . Time . | . . . . . . . . Total Part Build Rating . | . . . . . . . . Parts Repaired . | . . . . . . . . Time . | . . . . . . . . Parts Recycled . | . . . . . . . . Recycled Matter . | . . . . . . . . Retrieved Matter . | . . . . . . . . Retrieved Components . | . . . . . . . . Parts Scanalyzed . | . . . . . . . . Part Schematics Acquired . | . . . . . . . . Parts Damaged . | . . . . . . . . Bothacking | -11 -10 -10 -10 -9 -8 -7 -7 ------------ Run | Yrd Mat Min Exi Min Mat Fac Gar Used RIF Installer . | . . . . . . . . Robots Hacked 1 | . . . . . . . 1 Non-combat . | . . . . . . . . Combat 1 | . . . . . . . 1 Robot Hacks Applied 1 | . . . . . . . 1 parse_system 1 | . . . . . . . 1 Relay Couplers Released . | . . . . . . . . Fabnet Peak Effective % . | . . . . . . . . Robots Rewired . | . . . . . . . . Allies Hacked . | . . . . . . . . Hacks Repelled . | . . . . . . . . Allies | -11 -10 -10 -10 -9 -8 -7 -7 -------- Run | Yrd Mat Min Exi Min Mat Fac Gar Total Allies . | . . . . . . . . Largest Group . | . . . . . . . . Highest-Rated Group . | . . . . . . . . Highest-Rated Ally . | . . . . . . . . Total Orders . | . . . . . . . . Ally Attacks . | . . . . . . . . Total Damage . | . . . . . . . . Kills . | . . . . . . . . Allies Corrupted . | . . . . . . . . Allies Melted . | . . . . . . . . Intel | -11 -10 -10 -10 -9 -8 -7 -7 ------- Run | Yrd Mat Min Exi Min Mat Fac Gar Robot Analysis Total 1 | . . . . . 1 . . Derelict Logs Recovered 2 | . . 1 . 1 . . . Drone Launches . | . . . . . . . . Drone Recoveries . | . . . . . . . . Exploration | -11 -10 -10 -10 -9 -8 -7 -7 ------------- Run | Yrd Mat Min Exi Min Mat Fac Gar Turns Passed 1325 | 56 192 278 79 62 286 308 64 Spaces Moved 2220 | 42 116 485 209 157 547 579 85 Core 18 | 1 . 3 . . . . 14 Treads . | . . . . . . . . Legs 165 | 41 116 8 . . . . . Wheels . | . . . . . . . . Hover . | . . . . . . . . Flight 2037 | . . 474 209 157 547 579 71 Fastest Speed 31 | 50 120 37 37 37 31 32 32 Average Speed 41 | 118 120 38 37 37 31 36 34 Slowest Speed 120 | 120 120 120 37 37 34 120 50 Overloaded Moves . | . . . . . . . . Propulsion Burnouts . | . . . . . . . . Robots Hopped 38 | . . 4 . 4 17 13 . Cave-ins Triggered . | . . . . . . . . Exploration Rate (%) 37 | 4 31 79 60 55 44 17 13 Regions Visited 7 Branch Regions 3 Pre-discovered Areas 1 | . . 1 . . . . . Known Exits Taken 1 | . . . . . . 1 . Unknown Exits Taken 6 | 1 1 1 1 1 1 . . Scrap Searched 2 | . . 1 . 1 . . . Spaces Dug . | . . . . . . . . Terrain Destroyed . | . . . . . . . . Melee . | . . . . . . . . Projectile . | . . . . . . . . AOE . | . . . . . . . . Terrain Rammed . | . . . . . . . . Walls Destroyed . | . . . . . . . . Machines Disabled . | . . . . . . . . Actions | -11 -10 -10 -10 -9 -8 -7 -7 --------- Run | Yrd Mat Min Exi Min Mat Fac Gar Total 2497 | 46 145 543 209 156 625 653 120 Wait 146 | . 1 27 . 4 59 55 . Move 2140 | 41 115 476 208 148 514 553 85 Hop 37 | . . 4 . 4 16 13 . Pick Up 13 | 1 . 2 . . 7 3 . Fast Attach 24 | 4 3 5 1 . 5 6 . Attach 9 | . . . . . 3 3 3 Detach 3 | . . . . . . 1 2 Swap 6 | . 1 2 . . 2 1 . Drop 16 | . 2 1 . . 7 6 . Fire 72 | . 23 26 . . 11 12 . Melee 4 | . . . . . . . 4 Ram 2 | . . . . . 1 . 1 Kick . | . . . . . . . . Crush . | . . . . . . . . Escape Stasis 25 | . . . . . . . 25 Rewire . | . . . . . . . . Trap . | . . . . . . . . Miscellaneous . | . . . . . . . . Route ------- -11/Scrapyard -10/Materials (discovered 2 exits: [*Min x2]) -10/Mines (discovered 2 exits: [*Mat] / *Exi) -10/Exiles -9/Mines -8/Materials -7/Factory -7/Garrison History --------- Turn | Location | Event 5 | -11/Scrapyard | Discovered new exit (range 16) 57 | -11/Scrapyard | Entered Materials 57 | -10/Materials | Discovered new exit (range 14) 233 | -10/Materials | Discovered new exit (range 15) 249 | -10/Materials | Entered Mines 314 | -10/Mines | Deemed a non-threat by the Exiles lab entrance 332 | -10/Mines | Lost 6 parts (1p2n2u1w) 404 | -10/Mines | Discovered new exit (range 8) 483 | -10/Mines | Found a damaged Exp. Sensor Array with a note attached 484 | -10/Mines | Found Prototype Device 525 | -10/Mines | Discovered new exit (range 5) 527 | -10/Mines | Entered Exiles 536 | -10/Exiles | Met 8R-AWN 543 | -10/Exiles | Met EX-HEX 554 | -10/Exiles | Met EX-BIN 558 | -10/Exiles | Aligned with FarCom system 559 | -10/Exiles | Given EX-Vault access code 567 | -10/Exiles | Opened EX-Vault 569 | -10/Exiles | Found Prototype Processor 569 | -10/Exiles | Identified Modified TNC 577 | -10/Exiles | Warned to stay clear of 0b10 Research branches 590 | -10/Exiles | Build established: Scavenger-Mutant 590 | -10/Exiles | Met EX-DEC 603 | -10/Exiles | Discovered new exit (range 10) 606 | -10/Exiles | Left Exiles lab with Modified TNC 606 | -10/Exiles | Entered Mines 608 | -9/Mines | Learned 2 Materials zone layouts 626 | -9/Mines | Assembled infested the area 631 | -9/Mines | Assisted by a Guerilla fighting off Assembled 661 | -9/Mines | Discovered new exit (range 9) 668 | -9/Mines | Entered Materials 668 | -8/Materials | Evolved 4 slots: Propulsion x2, Utility x2 669 | -8/Materials | Identified Exp. Sensor Array 947 | -8/Materials | Discovered new exit (range 4) 954 | -8/Materials | Entered Factory 954 | -7/Factory | Evolved 2 slots: Propulsion x2 1095 | -7/Factory | Lost 4 parts (1n2u1w) 1262 | -7/Factory | Identified exit to Garrison 1262 | -7/Factory | Entered Garrison 1316 | -7/Garrison | Core integrity fell below 50% 1326 | -7/Garrison | Self-destructed Last Messages --------------- 01303_ Field strength at 70. 01304_ Field strength at 64. 01305_ Field strength at 58. 01306_ C-30 ARC bursts open, deploying its payload. 01306_ S-27 Virus unfolds itself. 01306_ Field strength at 48. 01306_ VTOL Module destroyed. 01307_ Field strength at 35. 01308_ VTOL Module destroyed. 01308_ Field strength at 12. 01309_ Field strength at 6. 01310_ Stasis field depleted. 01319_ Imp. Datajack destroyed. 01320_ Jacked S-27 Virus... >>parse_system Reading system data... 01321_ Jacked S-27 Virus... 01323_ Slammed into S-27 Virus. 01326_ Microactuators destroyed. Map ----- +----------------------------------------------------+ | ?????????????????????????????????????????????????? | | ?????????????????????????????????????????????????? | | ?????????????????????????????????????????????????? | | ?????????????????????????????????????????????????? | | ?????????????????????????????????????????????????? | | ?????????????????????????????????????????????????? | | ?????????????????????????????????????????????????? | | ?????????????????????????????????????????????????? | | ?????????????????????????????????????????????????? | | ?????????????????????????????????????????????????? | | ??#####??????????????????????????????????????????? | | ??# #??????????????????????????????????????????? | | ??# #??????????????????????????????????????????? | | ??# #??????????????????????????????????????????? | | ??# #??????????????????????????????????????????? | | ??# #??????????????????????????????????????????? | | ??# #??######"""##### #??????????????????????? | | ??# #??# ??????????????????????? | | ??# #??# ??????????????????????? | | ??# #??# ########?????????????????????????????? | | #?# #??# #????????????????????????????????????? | | T## #### #################????????????????????? | | #????????????????????? | | ## #????????????????????? | | #?# #????????????????????? | | ??#######################@ #????????????????????? | | ????????????????????????# #????????????????????? | | ????????????????????????#s #????????????????????? | | ????????????????????????#% #????????????????????? | | ????????????????????????# ss#????????????????????? | | ????????????????????????# s#????????????????????? | | ????????????????????????# #????????????????????? | | ????????????????????????# #????????????????????? | | ????????????????????????# #????????????????????? | | ????????????????????????# #????????????????????? | | ????????????????????????# #????????????????????? | | ????????????????????????# #????????????????????? | | ????????????????????????# #????????????????????? | | ????????????????????????# #????????????????????? | | ????????????????????????# #????????????????????? | | ????????????????????????#^ #????????????????????? | | ????????????????????????# #????????????????????? | | ????????????????????????# #########????????????? | | ????????????????????????# ?????? | | ????????????????????????# ?????? | | ????????????????????????# ?????? | | ????????????????????????############ ## ??????? | | ???????????????????????????????????????#?????????? | | ?????????????????????????????????????????????????? | | ?????????????????????????????????????????????????? | +----------------------------------------------------+ Best States ------------- Heat Dissipation 35 Energy Generation 14 Energy Capacity 250 Matter Stores 288 Matter Capacity 300 Sight Range 16 Robot Scan Range 14 Terrain Scan Density 10 ECM Strength 1 Evasion (%) 71 Melee Accuracy 10 Offensive Hacking 10 Item Schematics ----------------- Hammer | -10/Materials | Hacked Katana | -8/Materials | Hacked VTOL Module | -8/Materials | Hacked Hacking Suite | -8/Materials | Hacked Robot Schematics ------------------ None Fabricated ------------ Nothing Alien Tech Used ----------------- None Achievements -------------- None Challenges ------------ None Game ------ Seed CryofiberGravityNetwork Manual? 0 Play Time 00:29:21 Cumulative 24.6 hours Start 2024.04.08 @ 00:38:09 End 2024.04.08 @ 01:06:56 Sessions 1 Manual Loads 0 Difficulty Rogue Special Mode None Game No. 34 Rogue 34 Adventurer 0 Explorer 0 Win Type - Total 0 Types 0/0/0/0/0/0/0/0/0 Lore% 13 Gallery% 28 Achievement% 23 Wizard Run 0 Options --------- Layout 1 ASCII 0 Keyboard 0 Movement Numpad Keybinds 0 Fullscreen 1 Font 24/Crisp Map View 50x35 Zoom Use 0% Tactical HUD 1 Map Filters NONE Filters NONE Steam 1 RUN: 83a60a35-5594-41ce-8bfe-739a9777721b